lending/lending_fUSD_20260101
["ID","MTS","AMOUNT","RATE_DAILY","PERIOD"]
[400291650,1767286247142,-537.19627589,0.00016969,2]
[400291651,1767286247152,-500.0,0.00016973,2]
[400291652,1767286247161,-500.77061776,0.00016973,2]
[400291653,1767286247171,-174.71123832,0.00016973,2]
[400291654,1767286247180,-500.0,0.00016973,2]
[400291655,1767286247192,-501.63797235,0.00016973,2]
[400291656,1767286247202,-500.0,0.00016973,2]
[400291657,1767286247212,-500.0,0.00016973,2]
[400291658,1767286247221,-500.96497178,0.00016973,2]
[400291659,1767286247231,-500.0,0.00016973,2]
[400291660,1767286247242,-500.0,0.00016973,2]
[400291661,1767286247251,-500.0,0.00016973,2]
[400291662,1767286247262,-500.52092102,0.00016973,2]
[400291663,1767286247274,-160.44798541,0.00016973,2]
[400291664,1767286247291,-160.33375011,0.00016973,2]
[400291665,1767286247305,-500.85970253,0.00016973,2]
[400291666,1767286247317,-500.0,0.00016973,2]
[400291667,1767286247328,-511.31307013,0.00016973,2]
[400291668,1767286247337,-500.0,0.00016973,2]
[400291669,1767286247350,-160.44572408,0.00016973,2]
[400291670,1767286247361,-160.44794733,0.00016973,2]
[400291671,1767286247371,-160.2292817,0.00016973,2]
[400291672,1767286247382,-160.44319496,0.00016973,2]
[400291673,1767286247392,-500.0,0.00016973,2]
[400291674,1767286247402,-500.0,0.00016973,2]
[400291675,1767286247412,-548.94360671,0.00016973,2]
[400291676,1767286247421,-160.49976377,0.00016973,2]
[400291677,1767286247431,-500.0,0.00016973,2]
[400291678,1767286247441,-500.0,0.00016973,2]
[400291679,1767286247451,-500.0,0.00016973,2]
[400291680,1767286247461,-500.0,0.00016973,2]
[400291681,1767286247471,-500.0,0.00016973,2]
[400291682,1767286247481,-367.41921025,0.00016973,2]
[400291683,1767286247491,-505.08529404,0.00016973,2]
[400291684,1767286247501,-501.01295007,0.00016973,2]
[400291685,1767286247511,-500.0,0.00016973,2]
[400291686,1767286247521,-500.0,0.00016973,2]
[400291687,1767286247531,-621.98354256,0.00016973,2]
[400291688,1767286247541,-500.0,0.00016973,2]
[400291689,1767286247550,-51504.16,0.00016986,2]
[400291690,1767286247560,-537.19627589,0.00016986,2]
[400291691,1767286247570,-300.0,0.00016997,2]
[400291692,1767286247580,-254575.6377407,0.00016998,2]
[400291693,1767286247590,-293130.13941747,0.00016998,2]
[400291694,1767286253928,3129.420277,0.00043128,50]
[400291695,1767286254221,3129.420277,0.00043128,50]
[400291696,1767286254518,3129.420277,0.00043128,50]
[400291697,1767286254812,3129.420277,0.00043128,50]
[400291698,1767286255087,3129.420277,0.00043128,50]
[400291699,1767286255379,3129.420277,0.00043128,50]
[400291700,1767286255656,3129.420277,0.00043128,50]
[400291701,1767286256012,3129.420277,0.00043128,50]
[400291702,1767286256272,3129.420277,0.00043128,50]
[400291703,1767286256587,3129.420277,0.00043128,50]
[400291704,1767286256915,3129.420277,0.00043128,50]
[400291705,1767286257179,3129.420277,0.00043128,50]
[400291706,1767286257577,3129.420277,0.00043128,50]
[400291707,1767286257870,3129.420277,0.00043128,50]
[400291708,1767286258171,3129.420277,0.00043128,50]
[400291709,1767286258462,3129.420277,0.00043128,50]
[400291710,1767286258763,3129.420277,0.00043128,50]
[400291711,1767286259182,3129.420277,0.00043128,50]
[400291712,1767286259327,3129.420277,0.00043128,50]
[400291713,1767286259909,3129.420277,0.00043128,50]
[400291714,1767286261640,500.0,0.00043128,120]
[400291718,1767286535242,500.0,0.00043128,120]
[400291719,1767286535490,500.0,0.00043128,120]
[400291720,1767286535729,500.0,0.00043128,120]
[400291721,1767286535969,500.0,0.00043128,120]
[400291722,1767286536245,189.04530574,0.00043128,120]
[400291723,1767286562653,500.0,0.00043128,120]
[400291726,1767286785670,500.0,0.00043128,120]
[400291727,1767286785932,500.0,0.00043128,120]
[400291728,1767286786193,500.0,0.00043128,120]
[400291729,1767286786418,500.0,0.00043128,120]
[400291730,1767286786666,500.0,0.00043128,120]
[400291731,1767286786892,500.0,0.00043128,120]
[400291732,1767286787132,500.0,0.00043128,120]
[400291733,1767286787397,500.0,0.00043128,120]
[400291734,1767286787651,500.0,0.00043128,120]
[400291735,1767286787907,501.5,0.00043128,120]
[400291737,1767286861723,500.0,0.0004313,120]
[400291739,1767287035966,500.0,0.00043131,120]
[400291740,1767287036218,500.0,0.00043131,120]
[400291741,1767287036458,500.0,0.00043131,120]
[400291742,1767287036696,500.0,0.00043131,120]
[400291743,1767287036939,500.0,0.00043131,120]
[400291744,1767287037183,500.0,0.00043131,120]
[400291745,1767287037420,500.0,0.00043131,120]
[400291746,1767287037658,500.0,0.00043131,120]
[400291747,1767287037945,500.0,0.00043131,120]
[400291748,1767287038202,500.0,0.00043131,120]
[400291749,1767287038438,500.0,0.00043131,120]
[400291750,1767287038680,609.4998228,0.00043131,120]
[400291755,1767287161834,500.0,0.00043131,120]
[400291762,1767287339299,3178.86,0.00043131,120]
[400291763,1767287359160,-831.53625197,0.00013699,2]
[400291773,1767287431903,-113.60374803,0.00013699,2]
[400291774,1767287431913,-2377.95989518,0.00013699,2]
[400291775,1767287431923,-263.0,0.00013699,2]
[400291776,1767287431932,-300.0,0.00013949,2]
[400291777,1767287431943,-474.104,0.000142,2]
[400291778,1767287431953,-236.6119867,0.000143,2]
[400291779,1767287431964,-236.61198669,0.0001435,2]
[400291780,1767287431976,-236.61198669,0.000144,2]
[400291781,1767287431985,-1200.0,0.00014485,2]
[400291782,1767287431995,-300.0,0.00014485,2]
[400291783,1767287432005,-1200.0,0.00014486,2]
[400291784,1767287432015,-500.0,0.00014487,2]
[400291785,1767287432024,-500.0,0.00014487,2]
[400291786,1767287432034,-500.0,0.00014487,2]
[400291787,1767287432044,-500.0,0.00014487,2]
[400291788,1767287432053,-270.03531635,0.00014487,2]
[400291789,1767287432063,-500.0,0.00014487,2]
[400291790,1767287432073,-500.0,0.00014487,2]
[400291791,1767287432087,-500.0,0.00014487,2]
[400291792,1767287432098,-500.0,0.00014487,2]
[400291793,1767287432108,-475.93475777,0.00014488,2]
[400291794,1767287432118,-364.36844655,0.00014488,2]
[400291795,1767287432127,-150.0,0.00014499,2]
[400291796,1767287432138,-2000.0,0.000145,2]
[400291797,1767287432148,-5876.59,0.000145,2]
[400291798,1767287432158,-2000.0,0.00015,2]
[400291799,1767287432170,-300.0,0.00015068,2]
[400291800,1767287432180,-250.0,0.00015068,2]
[400291801,1767287432189,-300.0,0.00015068,2]
[400291802,1767287432199,-300.0,0.00015068,2]
[400291803,1767287432209,-250.0,0.00015068,2]
[400291804,1767287432219,-195.0,0.00015068,2]
[400291805,1767287432229,-300.0,0.00015068,2]
[400291806,1767287432238,-250.0,0.00015068,2]
[400291807,1767287432248,-2500.0,0.00015068,2]
[400291808,1767287432258,-249.49598206,0.00015194,2]
[400291810,1767287432433,-323.17401794,0.00015194,2]
[400291811,1767287432444,-161.98,0.00015195,2]
[400291812,1767287432454,-150.0,0.00015288,2]
[400291813,1767287432464,-153.33373495,0.00015288,2]
[400291814,1767287432474,-150.0,0.00015288,2]
[400291815,1767287432484,-150.0,0.00015288,2]
[400291816,1767287432494,-150.0,0.00015288,2]
[400291817,1767287432504,-150.0,0.00015288,2]
[400291818,1767287432513,-150.0,0.00015288,2]
[400291819,1767287432523,-150.0,0.00015288,2]
[400291820,1767287432533,-150.0,0.00015288,2]
[400291821,1767287432542,-150.0,0.00015288,2]
[400291822,1767287432553,-150.0,0.00015288,2]
[400291823,1767287432563,-150.0,0.00015288,2]
[400291824,1767287432574,-150.0,0.00015288,2]
[400291825,1767287432583,-150.0,0.00015288,2]
[400291826,1767287432593,-150.0,0.00015288,2]
[400291827,1767287432603,-200.0,0.00015295,2]
[400291828,1767287432614,-500.0,0.00015295,2]
[400291829,1767287432623,-2000.0,0.000155,2]
[400291830,1767287432634,-9562.12,0.000155,2]
[400291831,1767287432643,-3240.0,0.00015741,2]
[400291832,1767287432654,-758.88,0.000158,2]
[400291833,1767287432664,-150.0,0.00015854,2]
[400291834,1767287432674,-150.0,0.00015854,2]
[400291835,1767287432683,-480.0,0.00015863,2]
[400291836,1767287432693,-565.0,0.0001594,2]
[400291837,1767287432703,-2000.0,0.00016,2]
[400291838,1767287432713,-150.0,0.00016137,2]
[400291839,1767287432723,-150.0,0.00016137,2]
[400291840,1767287432733,-15100.74,0.00016207,2]
[400291841,1767287432742,-2199.63,0.00016242,2]
[400291842,1767287432751,-1427.34109587,0.00016265,2]
[400291843,1767287432768,-396.09815507,0.00016265,2]
[400291844,1767287432780,-123.38074906,0.00016265,2]
[400291845,1767287432790,-1000.0,0.00016305,2]
[400291846,1767287432800,-150.0,0.0001642,2]
[400291847,1767287432810,-150.0,0.0001642,2]
[400291848,1767287432819,-500.0,0.00016438,2]
[400291849,1767287432829,-500.0,0.00016438,2]
[400291850,1767287432838,-500.0,0.00016438,2]
[400291851,1767287432848,-500.0,0.00016438,2]
[400291852,1767287432859,-500.0,0.00016438,2]
[400291853,1767287432869,-413.63180562,0.00016438,2]
[400291854,1767287432881,-105.43651471,0.00016438,2]
[400291855,1767287432891,-331.61073413,0.00016438,2]
[400291856,1767287432906,-168.38926587,0.00016438,2]
[400291857,1767287432915,-414.79621937,0.00016438,2]
[400291858,1767287432932,-85.20378063,0.00016438,2]
[400291859,1767287432943,-505.03931287,0.000165,2]
[400291860,1767287432958,-250.0,0.000165,2]
[400291861,1767287432970,-1244.96068713,0.000165,2]
[400291862,1767287432981,-950.98467462,0.0001666,2]
[400291863,1767287432991,-324.0,0.0001673,2]
[400291864,1767287433001,-200.0,0.00016765,2]
[400291865,1767287433010,-17.33843379,0.00016871,2]
[400291866,1767287433022,-150.66156621,0.00016871,2]
[400291867,1767287433031,-125.99732884,0.00016898,2]
[400291868,1767287433043,-35.73855736,0.00016898,2]
[400291869,1767287433053,-180.46396185,0.00016898,2]
[400291870,1767287433063,-236.36,0.000169,2]
[400291871,1767287433072,-1340.43180334,0.000169,2]
[400291872,1767287433082,-503.52753185,0.00016973,2]
[400291873,1767287433091,-500.0,0.00016973,2]
[400291874,1767287433101,-500.0,0.00016973,2]
[400291875,1767287433111,-505.55178717,0.00016973,2]
[400291876,1767287433121,-501.58852701,0.00016973,2]
[400291877,1767287433131,-500.0,0.00016973,2]
[400291878,1767287433141,-500.0,0.00016973,2]
[400291879,1767287433153,-564.80462917,0.00016973,2]
[400291880,1767287433163,-500.0,0.00016973,2]
[400291881,1767287433174,-177.47568038,0.00016973,2]
[400291882,1767287433184,-500.0,0.00016973,2]
[400291883,1767287433194,-195.6349855,0.00016973,2]
[400291884,1767287433204,-504.52849311,0.00016973,2]
[400291885,1767287433214,-115.52869364,0.00016973,2]
[400291887,1767287438068,-2433.0,0.0001594,2]
[400291888,1767287438079,-3577.81153868,0.00016197,2]
[400291889,1767287438088,-384.47130636,0.00016973,2]
[400291890,1767287438099,-500.0,0.00016973,2]
[400291891,1767287438109,-494.08170173,0.00016973,2]
[400291892,1767287438225,-5.91829827,0.00016973,2]
[400291893,1767287438236,-298.15258162,0.00016973,2]
[400291894,1767287438246,-500.0,0.00016973,2]
[400291895,1767287438256,-500.0,0.00016973,2]
[400291896,1767287438266,-639.71670893,0.00016973,2]
[400291897,1767287438277,-150.0,0.00016986,2]
[400291898,1767287438287,-218.62701567,0.00016986,2]
[400291899,1767287438297,-150.00000001,0.00016986,2]
[400291900,1767287438308,-150.0,0.00016986,2]
[400291901,1767287438318,-150.0,0.00016986,2]
[400291902,1767287438328,-150.53428595,0.00016986,2]
[400291903,1767287438339,-150.0,0.00016986,2]
[400291904,1767287438349,-150.0,0.00016986,2]
[400291905,1767287438359,-150.00000001,0.00016986,2]
[400291906,1767287438369,-150.0,0.00016986,2]
[400291907,1767287438379,-150.0,0.00016986,2]
[400291908,1767287438390,-150.0,0.00016986,2]
[400291909,1767287438400,-168.0,0.00016995,2]
[400291910,1767287438410,-1117.0523241,0.00016996,2]
[400291911,1767287438420,-2119.11387455,0.00016996,2]
[400291912,1767287438433,-2173.78433035,0.00016996,2]
[400291914,1767287438443,-402.30716965,0.00016998,2]
[400291915,1767287440056,-914.69283035,0.00016998,2]
[400291916,1767287440067,-379587.57348457,0.00016998,2]
[400291917,1767287440080,-1201.94640451,0.00016998,2]
[400291918,1767287440092,-311.81519743,0.00016998,2]
[400291919,1767287440109,-6081.79999991,0.00016998,2]
[400291920,1767287440122,-527.63919377,0.00016998,2]
[400291921,1767287440134,-481.03654491,0.00016998,2]
[400291922,1767287440146,-564.11572434,0.00016998,2]
[400291923,1767287440158,-12986.48553838,0.00016998,2]
[400291924,1767287440169,-2590.80063541,0.00016998,2]
[400291925,1767287440181,-9449.84993306,0.00016998,2]
[400291926,1767287440193,-3065.39596182,0.00016998,2]
[400291927,1767287440269,-18872.80445432,0.00016998,2]
[400291928,1767287440428,-614.08054182,0.00016998,2]
[400291935,1767287443585,-913.0,0.0001627,2]
[400291936,1767287443597,-139137.46194255,0.00016998,2]
[400291937,1767287443608,-389960.40752226,0.00016998,2]
[400291938,1767287443621,-15224.10417946,0.00016998,2]
[400291957,1767287445952,-155479.09056799,0.00016998,2]
[400291958,1767287445962,-151.0,0.00016998,2]
[400291959,1767287445972,-151.0,0.00016998,2]
[400291960,1767287445984,-153.0,0.00016998,2]
[400291961,1767287445993,-154.0,0.00016998,2]
[400291962,1767287446003,-154.0,0.00016998,2]
[400291963,1767287446013,-154.0,0.00016998,2]
[400291964,1767287446022,-154.0,0.00016998,2]
[400291965,1767287446031,-154.0,0.00016998,2]
[400291966,1767287446041,-154.0,0.00016998,2]
[400291967,1767287446051,-154.0,0.00016998,2]
[400291968,1767287446060,-154.0,0.00016998,2]
[400291969,1767287446069,-154.0,0.00016998,2]
[400291970,1767287446084,-154.0,0.00016998,2]
[400291971,1767287446093,-154.0,0.00016998,2]
[400291972,1767287446103,-151.0,0.00016998,2]
[400291973,1767287446113,-151.0,0.00016998,2]
[400291974,1767287446123,-151.0,0.00016998,2]
[400291975,1767287446133,-151.0,0.00016998,2]
[400291976,1767287446143,-151.0,0.00016998,2]
[400291977,1767287446152,-302.0,0.00016998,2]
[400291978,1767287446162,-151.0,0.00016998,2]
[400291979,1767287446171,-151.0,0.00016998,2]
[400291980,1767287446181,-151.0,0.00016998,2]
[400291981,1767287446192,-5800.0,0.00016999,2]
[400291982,1767287446202,-5800.0,0.00016999,2]
[400291983,1767287446211,-46405.26009439,0.00017,2]
[400291984,1767287446223,-294443.85503591,0.00017,2]
[400291985,1767287446235,-9535.13739471,0.00017,2]
[400291986,1767287446246,-954.45988669,0.00017,2]
[400291987,1767287446257,-196811.64935701,0.00017,2]
[400291988,1767287446269,-663.21857907,0.00017,2]
[400291989,1767287446281,-636.735041,0.00017,2]
[400291990,1767287446293,-1529.2089369,0.00017,2]
[400291991,1767287446328,-2948.63050594,0.00017,2]
[400291992,1767287462815,500.0,0.00043131,120]
[400291993,1767287479177,162.82,8.357e-05,2]
[400291996,1767287647451,-379.283,0.00014102,2]
[400291997,1767287647475,-255.05791258,0.00014388,2]
[400291998,1767287647504,-6185.65908742,0.00014389,2]
[400292000,1767287761662,500.0,0.00043131,120]
[400292004,1767288061986,500.0,0.0004312,120]
[400292006,1767288186091,6888.0,0.00043121,120]
[400292007,1767288186710,7142.856,0.00043121,120]
[400292008,1767288187333,7407.141672,0.00043121,120]
[400292009,1767288187965,7681.20591386,0.00043121,120]
[400292010,1767288188614,7965.41053268,0.00043121,120]
[400292011,1767288189222,8260.13072239,0.00043121,120]
[400292012,1767288189826,8565.75555911,0.00043121,120]
[400292013,1767288190473,8882.6885148,0.00043121,120]
[400292014,1767288190757,417.27097768,0.00043121,120]
[400292015,1767288192759,250.0,0.00043121,120]
[400292016,1767288193247,250.0,0.00043121,120]
[400292017,1767288193865,250.0,0.00043121,120]
[400292018,1767288194495,250.0,0.00043121,120]
[400292019,1767288195121,250.0,0.00043121,120]
[400292020,1767288195728,250.0,0.00043121,120]
[400292021,1767288195931,500.0,0.00043121,120]
[400292022,1767288196327,250.0,0.00043121,120]
[400292023,1767288196561,500.0,0.00043121,120]
[400292024,1767288197006,250.0,0.00043121,120]
[400292025,1767288197164,500.0,0.00043121,120]
[400292026,1767288197758,500.0,0.00043121,120]
[400292027,1767288198106,250.0,0.00043121,120]
[400292028,1767288198535,500.0,0.00043121,120]
[400292029,1767288198947,250.0,0.00043121,120]
[400292030,1767288199159,500.0,0.00043121,120]
[400292031,1767288199383,250.0,0.00043121,120]
[400292032,1767288199768,500.0,0.00043121,120]
[400292033,1767288199894,500.0,0.00043121,120]
[400292034,1767288200474,500.0,0.00043121,120]
[400292035,1767288200524,500.0,0.00043121,120]
[400292036,1767288201113,500.0,0.00043121,120]
[400292037,1767288201146,500.0,0.00043121,120]
[400292038,1767288201745,500.0,0.00043121,120]
[400292039,1767288201782,500.0,0.00043121,120]
[400292040,1767288202356,500.0,0.00043121,120]
[400292041,1767288203006,500.0,0.00043121,120]
[400292042,1767288203556,500.0,0.00043121,120]
[400292043,1767288204153,500.0,0.00043121,120]
[400292044,1767288204785,500.0,0.00043121,120]
[400292045,1767288205381,500.0,0.00043121,120]
[400292046,1767288205986,500.0,0.00043121,120]
[400292048,1767288248576,3299.72510813,0.00043121,120]
[400292049,1767288315891,520.9147259,0.00043121,120]
[400292050,1767288328985,752.71,0.00043121,30]
[400292052,1767288360635,700.45656547,0.00043121,30]
[400292053,1767288361355,500.0,0.00043121,120]
[400292057,1767288427550,622.95838781,0.00043121,120]
[400292071,1767288632067,-488.623,0.00014102,2]
[400292073,1767288632079,-169.23361962,0.00014102,2]
[400292075,1767288632092,-96.76638038,0.00014102,2]
[400292076,1767288632103,-247.81361962,0.00014145,2]
[400292077,1767288632116,-352.18638038,0.00014145,2]
[400292078,1767288632128,-600.0,0.00014188,2]
[400292079,1767288632139,-264.33630298,0.00014287,2]
[400292080,1767288632152,-35.66369702,0.00014287,2]
[400292081,1767288632163,-1200.0,0.00014287,2]
[400292082,1767288632175,-300.0,0.00014287,2]
[400292083,1767288632200,-150.0,0.00014287,2]
[400292084,1767288632212,-500.0,0.00014288,2]
[400292085,1767288632224,-500.0,0.00014288,2]
[400292086,1767288632238,-156.22297201,0.00014288,2]
[400292087,1767288632248,-500.0,0.00014288,2]
[400292088,1767288632259,-160.12670547,0.00014288,2]
[400292089,1767288632270,-500.0,0.00014288,2]
[400292090,1767288632281,-271.60058431,0.00014288,2]
[400292091,1767288632297,-228.39941569,0.00014288,2]
[400292092,1767288632307,-421.16888405,0.00014288,2]
[400292093,1767288632317,-519.65379907,0.00014288,2]
[400292094,1767288632329,-212.05945281,0.00014288,2]
[400292095,1767288632340,-500.0,0.00014288,2]
[400292096,1767288632350,-236.63260429,0.00014288,2]
[400292097,1767288632362,-314.22330468,0.00014288,2]
[400292098,1767288632376,-167.12463492,0.00014289,2]
[400292101,1767288632393,-273.1107,0.00014289,2]
[400292103,1767288632406,-354.985,0.00014289,2]
[400292105,1767288632417,-43581.9501,0.00014289,2]
[400292107,1767288632428,-38450.6300543,0.00014289,2]
[400292110,1767288632442,-477.50618194,0.00014289,2]
[400292112,1767288632456,-569.31587421,0.00014289,2]
[400292114,1767288632470,-1100.7542825,0.00014289,2]
[400292116,1767288632482,-3078.20260405,0.00014289,2]
[400292121,1767288632522,-519.99902324,0.00014289,2]
[400292124,1767288632536,-72296.03347976,0.00014289,2]
[400292126,1767288632550,-500.0,0.00014373,2]
[400292128,1767288632560,-500.0,0.00014373,2]
[400292130,1767288632572,-315.15,0.00014388,2]
[400292132,1767288632583,-172.74,0.00014388,2]
[400292133,1767288632595,-499.99,0.00014388,2]
[400292135,1767288632605,-9999.99,0.00014389,2]
[400292137,1767288632617,-9999.99,0.00014389,2]
[400292138,1767288632627,-150.99,0.00014389,2]
[400292140,1767288632638,-315.15,0.00014662,2]
[400292141,1767288632649,-999.0,0.00014726,3]
[400292142,1767288632660,-3904.64147203,0.00014836,2]
[400292143,1767288632671,-1000.0,0.00014921,2]
[400292144,1767288632691,-315.16499168,0.00014936,2]
[400292145,1767288632702,-167.12463492,0.00015159,2]
[400292146,1767288632712,-166.84,0.00015226,2]
[400292147,1767288632722,-150.0,0.00015244,2]
[400292148,1767288632733,-220.0,0.00015416,2]
[400292149,1767288632743,-506.06245251,0.00015468,2]
[400292150,1767288632754,-600.0,0.00015512,2]
[400292151,1767288632765,-195.0,0.00015512,2]
[400292152,1767288632780,-600.0,0.00015512,2]
[400292153,1767288632791,-193.57716282,0.00015512,2]
[400292154,1767288632802,-250.0,0.00015512,2]
[400292155,1767288632812,-300.0,0.00015648,2]
[400292156,1767288632823,-1680.0,0.00015716,2]
[400292157,1767288632832,-7988.52794979,0.00016,2]
[400292158,1767288632845,-1592.51882864,0.00016,2]
[400292159,1767288632857,-665.43792637,0.00016,2]
[400292160,1767288632867,-6404.47715891,0.00016,4]
[400292161,1767288632881,-10850.31872745,0.00016,4]
[400292162,1767288632895,-3198.46095526,0.00016,4]
[400292163,1767288632905,-167.12463492,0.0001603,2]
[400292164,1767288632916,-351.0,0.00016046,2]
[400292165,1767288632927,-181.18,0.00016051,2]
[400292166,1767288632946,-351.0,0.00016052,2]
[400292167,1767288632958,-166.84,0.00016063,2]
[400292168,1767288632968,-351.0,0.00016067,2]
[400292169,1767288632978,-200.0,0.00016086,2]
[400292170,1767288632989,-198.82276029,0.00016086,2]
[400292171,1767288632999,-264.84657313,0.00016152,2]
[400292172,1767288633010,-8674.70320124,0.000162,5]
[400292173,1767288633027,-293.48857706,0.000162,5]
[400292174,1767288633039,-408.2574532,0.000162,5]
[400292175,1767288633052,-323.3292545,0.000162,5]
[400292176,1767288633064,-607.56498033,0.000162,5]
[400292177,1767288633078,-467.97969015,0.000162,5]
[400292178,1767288633089,-1400.36082986,0.000162,5]
[400292179,1767288633102,-5335.14297528,0.000162,5]
[400292180,1767288633114,-558.76267928,0.000162,5]
[400292181,1767288633127,-7061.92198,0.000162,5]
[400292182,1767288633141,-1331.26324519,0.000162,5]
[400292183,1767288633158,-1013.08682692,0.000162,5]
[400292193,1767288638280,-163.64844414,0.00014187,2]
[400292194,1767288638292,-314.73046877,0.00014273,2]
[400292195,1767288639149,-3291.0314278,0.00014273,2]
[400292196,1767288639160,-163.64844413,0.00014273,2]
[400292197,1767288639171,-3605.76189649,0.00014565,2]
[400292198,1767288639184,-13760.28787682,0.000162,5]
[400292199,1767288639209,-351.88118535,0.000162,5]
[400292200,1767288639226,-4648.80468234,0.000162,5]
[400292201,1767288639240,-105.60785259,0.000162,5]
[400292202,1767288639251,-2218.456,0.00016271,2]
[400292203,1767288639262,-2433.0,0.00016271,2]
[400292204,1767288639272,-255.96368845,0.00016271,2]
[400292205,1767288639284,-219.63331155,0.00016271,2]
[400292206,1767288639294,-351.0,0.00016325,2]
[400292207,1767288639304,-351.0,0.0001633,2]
[400292208,1767288639314,-1733.62,0.00016358,2]
[400292209,1767288639324,-1675.43,0.00016358,2]
[400292210,1767288639333,-154.72499476,0.00016361,2]
[400292211,1767288639344,-108.48886358,0.00016366,2]
[400292212,1767288639405,-42.51113642,0.00016366,2]
[400292213,1767288639415,-151.0,0.00016366,2]
[400292214,1767288639438,-151.0,0.0001639,2]
[400292215,1767288639449,-132.30181514,0.0001639,2]
[400292216,1767288639462,-18.69818486,0.0001639,2]
[400292217,1767288639472,-151.0,0.00016399,2]
[400292218,1767288639482,-151.0,0.00016399,2]
[400292219,1767288639491,-185.78,0.00016412,2]
[400292220,1767288639501,-500.0,0.00016438,2]
[400292221,1767288639511,-344.41458352,0.00016438,2]
[400292222,1767288639523,-98.75380232,0.00016438,2]
[400292321,1767288640543,-372.34049029,0.00016438,2]
[400292322,1767288640556,-28.90570739,0.00016438,2]
[400292323,1767288640565,-364.7566926,0.00016438,2]
[400292324,1767288640598,-135.2433074,0.00016438,2]
[400292325,1767288640608,-500.0,0.00016438,2]
[400292326,1767288640617,-499.99999999,0.00016438,2]
[400292327,1767288640627,-116.78761742,0.00016438,2]
[400292328,1767288640649,-3041.31238258,0.00016438,2]
[400292329,1767288640661,-351.0,0.0001646,2]
[400292330,1767288640671,-351.0,0.00016533,2]
[400292331,1767288640685,-351.0,0.00016567,2]
[400292332,1767288640695,-351.0,0.00016658,2]
[400292333,1767288640706,-2606.23170095,0.0001666,2]
[400292350,1767288643843,-16.97574592,0.00014857,2]
[400292351,1767288643903,-3588.78615057,0.00014857,2]
[400292352,1767288643913,-159.32107377,0.0001666,2]
[400292353,1767288643923,-351.0,0.00016707,2]
[400292354,1767288643934,-162.82,0.00016713,2]
[400292355,1767288643944,-351.0,0.00016729,2]
[400292356,1767288643954,-200.0,0.00016766,2]
[400292357,1767288643965,-168.0,0.00016812,2]
[400292358,1767288643974,-208.74426,0.0001683,2]
[400292359,1767288643985,-351.0,0.00016876,2]
[400292360,1767288643994,-167.12463492,0.000169,2]
[400292361,1767288644006,-154.72499476,0.000169,2]
[400292362,1767288644016,-1430.27113028,0.000169,2]
[400292363,1767288644027,-166.84,0.00016901,2]
[400292364,1767288644037,-208.74426,0.0001693,2]
[400292365,1767288644047,-500.0,0.00016973,2]
[400292366,1767288644057,-500.0,0.00016973,2]
[400292367,1767288644067,-500.0,0.00016973,2]
[400292368,1767288644077,-500.0,0.00016973,2]
[400292369,1767288644088,-500.0,0.00016973,2]
[400292370,1767288644099,-500.0,0.00016973,2]
[400292371,1767288644109,-260.31880002,0.00016973,2]
[400292372,1767288644119,-500.0,0.00016973,2]
[400292373,1767288644129,-500.0,0.00016973,2]
[400292374,1767288644139,-501.06507414,0.00016973,2]
[400292375,1767288644150,-500.0,0.00016973,2]